bitfinex/quotes_ETHUSD_20250804
["timestamp","ask_amount","ask_price","bid_price","bid_amount"]
[1754333903032,3.67327023,3675.7,3675.6,4.161]
[1754333903389,3.20307023,3675.7,3675.6,4.161]
[1754333903601,3.20307023,3675.7,3675.6,0.002]
[1754333903802,3.20307023,3675.7,3675.6,4.161]
[1754333904112,3.67327023,3675.7,3675.6,0.002]
[1754333904429,3.67327023,3675.7,3675.6,4.161]
[1754333904913,4.31604058,3675.7,3675.6,4.161]
[1754333905493,4.31604058,3675.7,3675.6,0.002]
[1754333905694,4.31604058,3675.7,3675.6,4.161]
[1754333907226,3.84584058,3675.7,3675.6,4.161]
[1754333907431,3.20307023,3675.7,3675.6,4.161]
[1754333908107,3.67327023,3675.7,3675.6,4.161]
[1754333908912,3.20307023,3675.7,3675.6,4.161]
[1754333910596,2.72057023,3675.7,3675.6,4.161]
[1754333910796,3.20307023,3675.7,3675.6,4.161]
[1754333912434,0.4825,3676.0,3675.6,4.297]
[1754333912636,2.72050747,3675.8,3675.6,4.297]
[1754333913036,2.72050747,3675.8,3675.6,4.161]
[1754333913340,2.72050747,3675.8,3675.7,0.136]
[1754333913518,3.20300747,3675.8,3675.7,0.136]
[1754333913711,2.72050747,3675.8,3675.7,0.136]
[1754333914242,3.20300747,3675.8,3675.7,0.136]
[1754333914438,3.67320747,3675.8,3675.7,0.136]
[1754333916243,3.67320747,3675.8,3675.6,0.002]
[1754333916244,2.72057023,3675.7,3675.6,0.002]
[1754333916544,2.72057023,3675.7,3675.6,0.138]
[1754333917044,0.001,3676.1,3675.7,0.55]
[1754333917228,0.001,3676.1,3675.9,0.55]
[1754333917539,0.001,3676.1,3676.0,0.56408717]
[1754333917742,0.001,3676.1,3676.0,5.51763024]
[1754333919244,0.001,3676.1,3676.0,5.50354307]
[1754333922014,0.001,3676.1,3676.0,9.67354307]
[1754333922343,0.001,3676.1,3676.0,4.78064307]
[1754333922549,0.001,3676.1,3676.0,7.4403482]
[1754333925762,0.9537,3676.1,3675.6,0.002]
[1754333926056,0.001,3676.1,3676.0,16.16110226]
[1754333926243,0.001,3676.1,3676.0,21.61500226]
[1754333926958,0.001,3676.1,3676.0,7.5873482]
[1754333927141,0.001,3676.1,3676.0,8.64450264]
[1754333928263,0.001,3676.1,3676.0,22.5300567]
[1754333928430,0.001,3676.1,3676.0,22.7937567]
[1754333930562,0.001,3676.1,3676.0,22.5300567]
[1754333930763,0.001,3676.1,3676.0,27.0037567]
[1754333932245,1e-08,3676.1,3676.0,30.0037567]
[1754333932444,1e-08,3676.1,3676.0,25.7937567]
[1754333933375,0.001,3676.6,3676.5,6.26997824]
[1754333933566,0.001,3676.6,3676.5,24.78973647]
[1754333933764,0.001,3676.6,3676.5,25.63343647]
[1754333940092,0.001,3676.6,3676.5,20.74493647]
[1754333940417,0.001,3676.6,3676.5,25.63043647]
[1754333940694,0.4801,3676.6,3676.5,29.13093647]
[1754333941279,0.001,3676.6,3676.5,29.13093647]
[1754333944668,0.001,3677.8,3677.2,6.26946045]
[1754333944863,0.001,3677.8,3677.4,6.26931255]
[1754333945066,0.001,3677.8,3677.4,10.44331255]
[1754333945288,0.001,3677.8,3677.4,10.84221255]
[1754333945494,0.001,3677.8,3677.4,11.28701255]
[1754333946369,0.001,3677.8,3677.4,10.57851255]
[1754333946569,0.001,3677.8,3677.4,13.30717441]
[1754333947785,0.4801,3677.8,3677.4,13.30717441]
[1754333948503,0.001,3677.8,3677.4,13.30717441]
[1754333950088,0.001,3677.8,3677.4,17.51717441]
[1754333951395,0.4801,3677.8,3677.4,17.51717441]
[1754333952021,0.001,3677.8,3677.4,17.51717441]
[1754333952332,1e-08,3677.8,3677.7,3.26909073]
[1754333952486,0.001,3678.6,3677.7,3.26909073]
[1754333952487,0.001,3678.6,3677.9,3.0]
[1754333952821,0.001,3678.6,3678.5,3.40369938]
[1754333953008,0.001,3678.6,3678.5,7.57269938]
[1754333953484,0.001,3678.6,3678.5,21.01345344]
[1754333953690,0.9077,3678.6,3678.5,21.01345344]
[1754333954638,0.001,3678.6,3678.5,21.01345344]
[1754333954818,0.001,3678.6,3678.5,21.91245761]
[1754333955526,0.9077,3678.6,3678.5,0.1352]
[1754333955724,0.9077,3678.6,3678.5,4.3042]
[1754333955927,0.9077,3678.6,3678.5,7.02269938]
[1754333956090,0.9077,3678.6,3678.5,4.3042]
[1754333957819,3.98881599,3678.6,3678.5,4.3142]
[1754333958018,3.62612548,3678.6,3678.5,4.3142]
[1754333959236,0.9077,3678.6,3678.5,4.3142]
[1754333960631,3.62612548,3678.6,3678.5,0.1352]
[1754333960827,1.54224265,3678.6,3678.5,4.3132]
[1754333961039,4.26066813,3678.6,3678.5,4.178]
[1754333961243,4.26066813,3678.6,3678.5,4.3132]
[1754333961809,1.54224265,3678.6,3678.5,4.3132]
[1754333962023,0.9077,3678.6,3678.5,4.3132]
[1754333962946,0.9114,3678.6,3678.5,4.3132]
[1754333965206,0.4514,3678.6,3678.5,7.03169938]
[1754333966046,0.4514,3678.6,3678.5,11.65649938]
[1754333966047,0.001,3678.6,3678.5,11.65649938]
[1754333966253,0.001,3678.6,3678.5,12.50696186]
[1754333966615,0.001,3678.6,3678.5,12.24326186]
[1754333967236,0.001,3678.6,3678.5,11.80186186]
[1754333968317,0.4514,3678.6,3678.5,11.80186186]
[1754333968848,0.9114,3678.6,3678.5,4.8952]
[1754333969067,3.62982548,3678.6,3678.5,4.3172]
[1754333970361,3.62982548,3678.6,3678.5,0.1352]
[1754333970524,3.62982548,3678.6,3678.5,1.16687321]
[1754333970729,2.71872111,3678.2,3678.1,0.1352]
[1754333971023,2.71872111,3678.2,3678.1,4.3242]
[1754333971332,3.62912111,3678.2,3678.1,4.3242]
[1754333971532,3.62912111,3678.2,3678.1,0.1352]
[1754333971722,3.62912111,3678.2,3678.1,4.3232]
[1754333971928,4.26389682,3678.2,3678.1,4.3232]
[1754333972948,4.26389682,3678.2,3678.1,4.188]
[1754333973131,7.26389682,3678.2,3678.1,4.188]
[1754333974218,7.26389682,3678.2,3677.8,0.1352]
[1754333974219,2.71894287,3677.9,3677.8,0.1352]
[1754333974447,2.71894287,3677.9,3677.8,4.3222]
[1754333974619,3.62934287,3677.9,3677.8,4.3222]
[1754333975129,2.71894287,3677.9,3677.8,4.3222]
[1754333975337,3.62934287,3677.9,3677.8,4.3222]
[1754333977170,0.4504,3678.4,3677.8,4.3222]
[1754333977354,0.4504,3678.4,3677.8,4.75442]
[1754333977668,2.71894287,3677.9,3677.8,4.61922]
[1754333977871,2.71894287,3677.9,3677.8,5.16922]
[1754333978168,2.71894287,3677.9,3677.8,5.30442]
[1754333979536,2.71894287,3677.9,3677.8,4.8722]
[1754333982672,2.71894287,3677.9,3677.8,4.8662]
[1754333982835,3.62934287,3677.9,3677.8,0.1352]
[1754333983180,3.62934287,3677.9,3677.8,4.3162]
[1754333985274,3.62934287,3677.9,3677.8,8.5262]
[1754333990143,2.71894287,3677.9,3677.8,8.5262]
[1754333990386,3.18954287,3677.9,3677.8,8.5262]
[1754333990585,3.63754287,3677.9,3677.8,8.5262]
[1754333990794,2.71886584,3678.1,3677.8,8.5262]
[1754333990996,3.1362,3678.6,3677.9,5.4814513]
[1754333990997,0.001,3678.6,3677.9,5.4814513]
[1754333991301,0.001,3678.6,3678.1,0.55]
[1754333991463,2.7185102,3678.5,3678.3,0.55]
[1754333991789,3.1891102,3678.5,3678.4,4.176]
[1754333992086,0.4706,3678.5,3678.4,4.3112]
[1754333992604,0.001,3678.6,3678.4,8.5212]
[1754333992764,0.001,3678.6,3678.5,1.45712]
[1754333992958,0.001,3678.6,3678.5,4.61931938]
[1754333993155,0.001,3678.6,3678.5,5.0322596]
[1754333995264,0.001,3678.6,3678.5,5.01821938]
[1754333995470,0.001,3678.6,3678.5,5.0322596]
[1754333995777,0.001,3678.6,3678.5,8.0322596]
[1754333995977,0.001,3678.6,3678.5,8.01821938]
[1754333996894,0.001,3678.6,3678.5,4.59232]
[1754333997067,0.9196,3678.6,3678.5,4.8592]
[1754333997257,0.9196,3678.6,3678.5,7.57769938]
[1754333997457,0.001,3678.6,3678.5,7.57769938]
[1754333997660,0.001,3678.6,3678.5,8.28509938]
[1754333998158,0.001,3678.6,3678.5,12.23139938]
[1754333998390,0.001,3678.6,3678.5,14.48773184]
[1754333999763,0.001,3678.6,3678.5,14.75143184]
[1754334000299,0.001,3678.6,3678.5,8.5172]
[1754334000530,3.63802548,3678.6,3678.5,4.3452]
[1754334000802,3.63802548,3678.6,3678.5,0.1352]
[1754334000972,5.71854199,3678.5,3677.8,0.1352]
[1754334001171,5.71894287,3677.9,3677.8,0.1352]
[1754334001359,5.71894287,3677.9,3677.2,6.53]
[1754334001360,2.7193865,3677.3,3677.2,6.53]
[1754334001562,3.6379865,3677.3,3677.2,10.707]
[1754334002273,3.6379865,3677.3,3677.2,10.71]
[1754334002491,3.6379865,3677.3,3677.2,6.53]
[1754334002901,0.4706,3677.3,3677.2,10.709]
[1754334003192,0.9186,3677.3,3677.2,4.3142]
[1754334003396,0.4706,3677.3,3677.2,4.3142]
[1754334003597,0.4706,3677.6,3677.2,5.01778105]
[1754334003796,0.4706,3677.9,3677.5,2.85438044]
[1754334004100,0.4706,3677.9,3677.6,4.182]
[1754334004298,2.71884445,3678.1,3677.8,0.1352]
[1754334004497,0.1362,3678.6,3677.8,0.1352]
[1754334004666,2.71873438,3678.2,3678.0,0.1352]
[1754334004865,5.71873438,3678.2,3678.1,4.184]
[1754334005101,3.0,3678.2,3678.1,4.184]
[1754334005485,3.9186,3678.2,3678.1,4.184]
[1754334005803,0.4706,3678.4,3678.1,4.184]
[1754334005965,2.71948869,3678.6,3678.1,4.3192]
[1754334006170,0.4716,3678.6,3678.3,0.1352]
[1754334006502,0.4716,3678.6,3678.5,0.1352]
[1754334006710,0.001,3678.6,3678.5,4.12143045]
[1754334007076,0.001,3678.6,3678.5,4.56513045]
[1754334007270,0.001,3678.6,3678.5,4.96403045]
[1754334007800,0.001,3678.6,3678.5,4.94999023]
[1754334008680,0.001,3678.6,3678.5,4.10739023]
[1754334008880,0.001,3678.6,3678.5,4.55109023]
[1754334009710,0.001,3678.6,3678.5,4.94999023]
[1754334011509,0.001,3678.6,3678.5,4.55109023]
[1754334012619,0.001,3678.6,3678.5,7.96403045]
[1754334012787,0.001,3678.6,3678.5,12.15999023]
[1754334013704,0.4716,3678.6,3678.5,10.76739023]
[1754334014017,0.9196,3678.6,3678.5,11.24569938]
[1754334014176,0.4716,3678.6,3678.5,11.24569938]
[1754334014584,0.4716,3678.6,3678.5,11.79569938]
[1754334014903,0.001,3678.6,3678.5,11.79569938]
[1754334016381,0.4716,3678.6,3678.5,11.79569938]
[1754334017013,0.001,3678.6,3678.5,11.79569938]
[1754334017320,0.001,3678.6,3678.5,13.96212781]
[1754334017483,0.001,3678.6,3678.5,9.75212781]
[1754334017683,0.001,3678.6,3678.5,7.58569938]
[1754334018180,0.001,3678.6,3678.5,7.45049938]
[1754334018383,0.001,3678.6,3678.5,8.44979938]
[1754334018918,0.001,3678.6,3678.5,11.44979938]
[1754334019715,0.001,3678.6,3678.5,11.05089938]
[1754334020387,0.001,3678.6,3678.5,13.77956124]
[1754334020789,0.001,3678.6,3678.5,13.31436124]
[1754334021944,0.46425143,3679.1,3679.0,3.26812992]
[1754334022115,0.4592,3679.3,3679.0,3.26812992]
[1754334022116,0.001,3679.3,3679.2,3.26798217]
[1754334022429,0.001,3679.3,3679.2,8.61302377]
[1754334022598,0.001,3679.3,3679.2,8.59899648]
[1754334023713,0.4707,3679.3,3679.2,8.59899648]
[1754334024181,0.9289,3679.3,3679.2,8.59899648]
[1754334024819,0.001,3679.3,3679.2,8.59899648]
[1754334027899,0.001,3679.3,3679.2,9.06419648]
[1754334028405,0.001,3679.3,3679.2,8.59899648]
[1754334029523,0.001,3679.3,3679.2,9.06419648]
[1754334029717,0.001,3679.3,3679.2,9.46849648]
[1754334030098,0.001,3679.3,3679.2,8.59899648]
[1754334030714,0.9289,3679.3,3679.2,8.59199648]
[1754334030913,0.4707,3679.3,3679.2,8.59199648]
[1754334031684,0.001,3679.3,3679.2,8.59199648]
[1754334033342,0.4592,3679.7,3679.3,3.26790829]
[1754334033343,0.001,3679.7,3679.3,3.26790829]
[1754334033495,0.001,3679.7,3679.3,6.01046913]
[1754334033700,0.001,3679.7,3679.3,5.99644369]
[1754334033933,0.001,3679.7,3679.3,5.59214369]
[1754334034233,0.001,3679.7,3679.3,5.14096913]
[1754334035642,0.001,3679.7,3679.3,9.35096913]
[1754334035822,0.001,3679.7,3679.3,9.33694369]
[1754334036317,0.001,3679.7,3679.3,9.80214369]
[1754334039336,0.001,3679.7,3679.3,13.20644369]
[1754334039542,0.001,3679.7,3679.6,3.2676867]
[1754334039704,0.001,3679.7,3679.6,12.0108967]
[1754334040042,0.001,3679.7,3679.6,12.1320768]
[1754334040626,0.4697,3680.9,3680.3,3.26716979]
[1754334040843,0.4592,3680.4,3680.3,7.61236979]
[1754334041031,0.4592,3680.4,3680.3,11.78136979]
[1754334041417,0.9289,3680.4,3680.3,11.78136979]
[1754334042219,0.4707,3680.4,3680.3,11.78136979]
[1754334042615,0.9289,3680.4,3680.3,11.78136979]
[1754334043343,0.9289,3680.4,3680.3,4.8952]
[1754334043542,0.9289,3680.4,3680.3,4.3052]
[1754334044539,0.9289,3680.4,3680.3,7.02236979]
[1754334045322,0.001,3680.4,3680.3,9.28828206]
[1754334045634,0.4707,3680.8,3680.4,3.26709596]
[1754334045833,0.4707,3680.8,3680.4,14.64110109]
[1754334046044,0.001,3680.8,3680.4,14.62709596]
[1754334046340,0.4697,3680.7,3680.4,14.62709596]
[1754334046667,0.4697,3680.7,3680.6,3.26694832]
[1754334046812,0.4697,3680.7,3680.6,7.43894832]
[1754334047013,0.9429,3680.7,3680.6,11.78414832]
[1754334047207,0.9429,3680.7,3680.6,4.3062]
[1754334047410,0.9429,3680.7,3680.6,7.02314832]
[1754334048827,0.001,3680.8,3680.7,3.2668745]
[1754334049162,0.001,3680.8,3680.7,3.4020745]
[1754334049512,0.001,3680.8,3680.7,3.4160741]
[1754334050123,0.001,3680.8,3680.7,3.4020745]
[1754334050322,0.48,3681.6,3680.7,8.09336051]
[1754334050540,0.48,3681.6,3681.5,2.71628412]
[1754334050771,0.48,3681.6,3681.5,7.02348412]
[1754334050978,0.9532,3681.6,3681.5,7.02348412]
[1754334051333,0.9532,3681.6,3681.5,4.3072]
[1754334051983,0.9532,3681.6,3681.5,7.02348412]
[1754334053847,0.48,3681.6,3681.5,7.02348412]
[1754334054363,0.9532,3681.6,3681.5,7.02348412]
[1754334054667,0.48,3681.9,3681.8,2.71606279]
[1754334054837,0.48,3681.9,3681.8,6.88506279]
[1754334055038,0.9532,3681.9,3681.8,7.02026279]
[1754334055245,0.48,3681.9,3681.8,7.02026279]
[1754334056833,3.1362,3682.8,3681.8,4.3042]
[1754334057138,0.48,3682.4,3682.2,0.1352]
[1754334057340,0.48,3682.4,3682.3,6.88369399]
[1754334057535,0.9532,3682.4,3682.3,7.01889399]
[1754334057951,0.9532,3682.4,3682.3,4.3032]
[1754334058554,0.9532,3682.4,3682.3,7.01889399]
[1754334059287,0.9532,3682.4,3682.3,4.3032]
[1754334059871,0.9532,3682.4,3682.3,7.01889399]
[1754334060101,0.9532,3682.4,3682.3,4.3032]
[1754334060452,0.48,3682.7,3682.3,7.01889399]
[1754334060693,0.001,3682.8,3682.6,2.85067276]
[1754334060971,0.4742,3682.8,3682.7,4.166]
[1754334061790,0.9542,3682.8,3682.7,4.166]
[1754334064082,0.9542,3682.8,3682.6,0.1352]
[1754334064291,2.7156393,3682.4,3681.9,0.55]
[1754334064487,2.7156393,3682.4,3681.3,0.4385]
[1754334064488,0.9532,3682.3,3681.0,0.4385]
[1754334064690,0.9532,3682.2,3680.9,6.524]
[1754334064855,0.9532,3682.1,3681.7,0.1352]
[1754334065061,0.03394894,3682.0,3681.7,0.1352]
[1754334065264,2.7163822,3681.4,3680.9,6.524]
[1754334065563,0.9532,3681.3,3681.0,4.164]
[1754334065764,2.7163156,3681.5,3681.3,0.1352]
[1754334065970,2.71623492,3681.6,3681.4,4.164]
[1754334066376,0.9532,3681.5,3681.4,4.164]
[1754334067403,3.66948412,3681.5,3681.4,4.164]
[1754334068556,1.89186823,3681.5,3680.9,6.524]
[1754334068762,0.9532,3681.4,3681.0,4.2982]
[1754334068988,2.71657809,3681.2,3681.0,4.2982]
[1754334069179,0.9532,3681.1,3681.0,4.2982]
[1754334069570,0.48,3681.4,3681.0,4.2982]
[1754334069910,3.6696353,3681.3,3681.0,4.2982]
[1754334070064,2.7164353,3681.3,3681.0,4.2982]
[1754334070261,0.9532,3681.2,3681.0,4.2982]
[1754334070797,0.9532,3681.1,3681.0,4.2982]
[1754334071102,0.48,3681.1,3681.0,4.2982]
[1754334071571,0.48,3681.6,3681.0,5.92377537]
[1754334071770,0.48,3681.6,3681.1,2.71657903]
[1754334071973,0.48,3681.6,3681.4,0.1352]
[1754334072185,0.48,3681.6,3681.5,4.161]
[1754334072396,0.001,3681.7,3681.5,4.161]
[1754334072763,0.001,3681.7,3681.6,0.1352]
[1754334073278,0.481,3681.7,3681.6,0.1352]
[1754334073488,0.9542,3681.7,3681.6,0.1352]
[1754334073799,3.67033656,3681.7,3681.6,4.162]
[1754334074095,4.30897187,3681.7,3681.6,4.162]
[1754334074997,0.9542,3681.7,3681.6,4.162]
[1754334075199,0.481,3681.7,3681.6,4.2972]
[1754334075373,0.001,3681.7,3681.6,4.2972]
[1754334076163,0.481,3681.7,3681.6,4.2972]
[1754334076766,0.001,3681.7,3681.6,4.2972]
[1754334077491,0.001,3681.7,3681.6,7.01341034]
[1754334078001,0.4742,3681.7,3681.6,4.2972]
[1754334082619,0.001,3681.7,3681.6,7.99313034]
[1754334082815,0.001,3681.7,3681.6,8.83353034]
[1754334083197,0.001,3681.7,3681.6,8.42923034]
[1754334083674,0.001,3681.7,3681.6,5.27692]
[1754334083888,0.4742,3681.7,3681.6,4.8472]
[1754334084075,0.001,3681.7,3681.6,4.8472]
[1754334084296,0.4742,3681.7,3681.6,4.8472]
[1754334084685,0.001,3681.7,3681.6,7.56341034]
[1754334085570,0.001,3681.7,3681.6,4.8472]
[1754334085771,0.9261,3681.7,3681.6,4.2972]
[1754334085971,0.9261,3681.7,3681.6,0.1352]
[1754334086184,0.9261,3681.7,3681.6,4.2952]
[1754334088789,3.64223656,3681.7,3681.6,4.2952]
[1754334089105,3.64223656,3681.7,3680.9,9.24072583]
[1754334089106,2.71665308,3681.0,3680.9,6.524]
[1754334089410,3.64175308,3681.0,3680.9,10.8192]
[1754334089614,2.71702214,3680.5,3680.4,0.002]
[1754334089799,5.71702214,3680.5,3680.4,0.002]
[1754334090115,0.4732,3680.5,3680.4,4.162]
[1754334090415,3.64212214,3680.5,3680.4,4.162]
[1754334090619,4.59154271,3680.5,3680.4,4.162]
[1754334091834,4.84570445,3680.5,3680.4,4.162]
[1754334092302,4.59154271,3680.5,3680.4,4.162]
[1754334093119,4.84559883,3680.5,3680.4,4.162]
[1754334093324,4.59154271,3680.5,3680.4,4.162]
[1754334093917,4.59154271,3680.5,3680.0,0.002]
[1754334093918,2.71731746,3680.1,3680.0,0.002]
[1754334094092,3.00519045,3680.1,3680.0,1e-08]
[1754334094297,4.06549045,3680.1,3680.0,1e-08]
[1754334094926,7.06549045,3680.1,3680.0,1e-08]
[1754334095214,9.75992002,3680.1,3680.0,1e-08]
[1754334095638,9.50627932,3680.1,3680.0,1e-08]
[1754334096708,3.64241746,3680.1,3680.0,1e-08]
[1754334097118,0.9251,3680.1,3680.0,1e-08]
[1754334097283,3.0,3680.4,3680.0,1e-08]
[1754334097481,0.6084,3680.4,3680.1,4.164]
[1754334097679,2.71724362,3680.2,3680.1,4.164]
[1754334098116,3.64234362,3680.2,3680.1,4.164]
[1754334098315,4.24449175,3680.2,3680.1,4.164]
[1754334099691,7.24449175,3680.2,3680.1,4.164]
[1754334100633,6.79259175,3680.2,3680.1,4.164]
[1754334100812,3.19044362,3680.2,3680.1,4.164]
[1754334101324,2.71718166,3680.3,3680.1,4.164]
[1754334101620,2.71718638,3680.3,3680.1,4.164]
[1754334101830,3.0,3680.8,3680.1,4.164]
[1754334101831,0.9251,3680.8,3680.1,4.164]
[1754334102028,2.71709649,3680.4,3680.1,4.164]
[1754334102323,3.0,3680.5,3680.1,4.164]
[1754334102535,2.71702214,3680.5,3680.1,4.164]
[1754334103300,3.0,3680.5,3680.1,4.164]
[1754334103493,2.85215343,3680.6,3680.1,4.164]
[1754334103494,2.71717101,3680.3,3680.1,4.164]
[1754334103701,0.1352,3680.6,3680.1,4.164]
[1754334103928,0.1352,3680.6,3680.2,0.4361]
[1754334104426,2.85212067,3680.7,3680.3,0.4361]
[1754334104618,2.71694857,3680.6,3680.1,4.2992]
[1754334104820,3.4732,3680.6,3680.1,4.2992]
[1754334105328,2.71709686,3680.4,3680.1,4.2992]
[1754334105525,2.71718978,3680.3,3680.1,4.2992]
[1754334106090,3.64234362,3680.2,3680.1,4.162]
[1754334106291,4.28169031,3680.2,3680.1,4.162]
[1754334107802,0.4732,3680.2,3680.1,4.162]
[1754334108128,0.1352,3680.3,3680.1,4.162]
[1754334108299,2.71724362,3680.2,3680.1,4.162]
[1754334108498,2.85239697,3680.3,3680.1,4.162]
[1754334108699,2.71724362,3680.2,3680.1,4.162]
[1754334109193,2.71724362,3680.2,3680.1,4.164]
[1754334109704,3.18414362,3680.2,3680.1,4.164]
[1754334109911,3.61274362,3680.2,3680.1,4.164]
[1754334110124,2.85239024,3680.3,3680.1,4.164]
[1754334110496,2.71724362,3680.2,3680.1,4.164]
[1754334111344,3.61274362,3680.2,3680.1,4.164]
[1754334111915,2.71724362,3680.2,3680.1,4.164]
[1754334112731,3.18414362,3680.2,3680.1,4.164]
[1754334112936,3.83064813,3680.2,3680.1,4.164]
[1754334113838,3.18414362,3680.2,3680.1,4.164]
[1754334116334,2.71724362,3680.2,3680.1,4.164]
[1754334116724,3.18414362,3680.2,3680.1,4.164]
[1754334116924,0.1352,3680.3,3680.1,4.164]
[1754334117129,2.85237965,3680.3,3680.1,4.164]
[1754334117337,2.71782072,3680.8,3680.2,0.45]
[1754334117633,2.7170675,3680.5,3680.2,0.45]
[1754334117833,2.71716145,3680.4,3680.1,4.2992]
[1754334118005,3.18385924,3680.6,3680.1,4.2992]
[1754334118341,2.71714563,3680.4,3680.1,4.2992]
[1754334118537,2.71699246,3680.6,3680.1,4.2992]
[1754334118741,2.71706675,3680.5,3680.1,4.7492]
[1754334118919,2.71697861,3680.6,3680.1,4.7492]
[1754334119323,0.1352,3680.7,3680.1,4.7492]
[1754334119526,0.001,3680.8,3680.3,0.55]
[1754334119721,0.001,3680.8,3680.5,0.1352]
[1754334120017,0.001,3680.8,3680.7,2.7168745]
[1754334120209,0.001,3680.8,3680.7,3.4020745]
[1754334120410,0.001,3680.8,3680.7,4.2563745]
[1754334120622,0.001,3680.8,3680.7,5.36991393]
[1754334122523,0.001,3680.8,3680.7,0.1352]
[1754334122741,0.001,3680.8,3680.7,4.2972]
[1754334122936,0.4679,3680.8,3680.7,4.2972]
[1754334123523,0.001,3680.8,3680.7,4.2972]
[1754334124655,0.4679,3680.8,3680.7,4.2972]
[1754334124816,0.4179,3680.8,3680.7,4.2972]
[1754334125626,2.7169204,3680.7,3680.1,2.71931088]
[1754334125830,3.14542623,3680.8,3680.5,0.1352]
[1754334126053,3.14542623,3680.8,3680.6,4.161]
[1754334126255,2.71682623,3680.8,3680.6,4.161]
[1754334126449,2.71665308,3681.0,3680.6,4.161]
[1754334126754,0.001,3681.2,3680.7,0.9033]
[1754334126931,0.001,3681.2,3680.9,0.1352]
[1754334127126,0.001,3681.2,3681.1,2.71657928]
[1754334127331,0.001,3681.2,3681.1,2.85177928]
[1754334127521,0.001,3681.2,3681.1,3.75507928]
[1754334127716,0.001,3681.2,3681.1,5.64001991]
[1754334129055,0.001,3681.2,3681.1,8.65401212]
[1754334129241,0.001,3681.2,3681.1,8.64001991]
[1754334132059,0.001,3681.4,3681.1,8.64001991]
[1754334132231,0.001,3681.7,3681.6,3.26621034]
[1754334132433,0.001,3681.7,3681.6,7.42721034]
[1754334132621,0.001,3681.7,3681.6,8.33051034]
[1754334132822,0.001,3681.7,3681.6,8.46571034]
[1754334133027,0.001,3681.7,3681.6,11.46571034]
[1754334133232,0.001,3681.7,3681.6,13.15555447]
[1754334134366,0.001,3681.7,3681.6,17.36555447]
[1754334135657,0.001,3681.7,3681.6,13.20455447]
[1754334135952,0.001,3681.7,3681.6,16.46125447]
[1754334136750,0.001,3681.7,3681.6,16.89915447]
[1754334138176,0.001,3681.7,3681.6,17.35245447]
[1754334138478,0.001,3682.1,3681.9,2.71598902]
[1754334138637,0.001,3682.1,3681.9,15.6881586]
[1754334138953,0.001,3682.1,3681.9,16.70058114]
[1754334143144,0.001,3682.1,3681.9,16.24728114]
[1754334143349,0.001,3682.1,3681.9,16.70058114]
[1754334143772,0.001,3682.1,3681.9,16.24728114]
[1754334143961,0.001,3682.1,3681.9,11.64938114]
[1754334144168,0.9723,3682.0,3681.9,11.04838114]
[1754334144371,0.9723,3682.0,3681.9,10.01018902]
[1754334144743,0.9723,3682.0,3681.9,10.56018902]
[1754334145181,0.9723,3682.0,3681.9,10.55918902]
[1754334145656,0.5001,3682.0,3681.9,17.08018902]
[1754334145859,0.5001,3682.0,3681.9,7.2062]
[1754334146055,0.9723,3682.0,3681.9,6.6562]
[1754334146277,0.9723,3682.0,3681.9,10.8142]
[1754334146960,0.9723,3682.0,3681.9,13.53018902]
[1754334148077,0.9723,3682.0,3681.9,9.37218902]
[1754334148375,0.5001,3682.0,3681.9,13.53018902]
[1754334148965,0.5001,3682.0,3681.9,10.8142]
[1754334149169,0.9723,3682.0,3681.9,10.8142]
[1754334150278,3.68821526,3682.0,3681.9,10.8142]
[1754334150446,4.32871997,3682.0,3681.9,6.6562]
[1754334150646,4.32871997,3682.0,3681.9,10.8142]
[1754334151280,4.32871997,3682.0,3681.9,6.521]
[1754334151580,4.32871997,3682.0,3681.9,10.679]
[1754334152984,1.61280471,3682.0,3681.9,10.679]
[1754334153186,0.9723,3682.0,3681.9,10.679]
[1754334153544,3.68821526,3682.0,3681.9,10.679]
[1754334153959,0.9723,3682.0,3681.9,10.679]
[1754334155087,3.68821526,3682.0,3681.9,10.679]
[1754334155464,0.9723,3682.0,3681.9,10.679]
[1754334155874,0.001,3682.0,3681.9,10.679]
[1754334156061,0.001,3682.0,3681.9,13.53018902]
[1754334156262,0.001,3682.0,3681.9,6.6562]
[1754334156582,0.001,3682.0,3681.9,10.8142]
[1754334157898,3.68821526,3682.0,3681.9,6.6562]
[1754334158067,3.68821526,3682.0,3680.5,6.522]
[1754334158068,1.61619949,3682.0,3680.5,6.522]
[1754334158268,2.71657928,3681.1,3680.7,0.1352]
[1754334158791,0.9713,3681.1,3681.0,4.16]
[1754334159094,0.9713,3681.1,3681.0,0.002]
[1754334159396,0.9713,3681.1,3681.0,4.16]
[1754334161905,2.71651859,3681.2,3681.0,4.16]
[1754334162105,0.4991,3681.7,3681.0,4.16]
[1754334162390,0.4991,3681.7,3681.1,0.1352]
[1754334162391,0.4991,3681.5,3681.1,0.1352]
[1754334162591,0.9713,3681.4,3681.2,4.158]
[1754334162803,0.4991,3681.3,3681.2,4.158]
[1754334163181,0.9713,3681.3,3681.2,4.158]
[1754334163697,2.71623054,3681.6,3681.2,4.158]
[1754334163906,0.1352,3681.7,3681.3,3.17113169]
[1754334164073,0.1352,3681.7,3681.4,6.8753579]
[1754334164282,0.001,3682.0,3681.6,0.1352]
[1754334164478,0.001,3682.0,3681.7,4.159]
[1754334164977,0.001,3682.0,3681.9,2.71598902]
[1754334165300,0.001,3682.0,3681.9,8.05855539]
[1754334165682,0.001,3682.0,3681.9,9.50115539]